Cogmind - Beta 16 @@@ ROGUE MODE // 2025.11.09 @ 17:19:54 Player: GFYguy Result: Self-destructed Performance ------------- Evolutions (1) 500 Regions Visited (2) 400 Robots Destroyed (19) 95 Value Destroyed (353) 353 Prototype IDs (2) 40 Alien Tech Used (0) 0 Bonus (0) 0 TOTAL SCORE: 1388 Bonus ------- None Cogmind --------- Core Integrity 307/400 Matter 177/300 Energy 125/125 System Corruption 0% Temperature Cool (15) Movement Flying (120) Ox1 Location -9/Materials Parts ------- > --- POWER (2) -------- Light Ion Engine > --- PROPULSION (2) --- Flight Unit > --- UTILITY (2) ------ Small Storage Unit > --- WEAPON (3) ------- (None) > --- INVENTORY (8) ---- Light Ion Engine Compact Wheel Sensor Array Signal Interpreter Heavy Assault Rifle Heavy Assault Rifle Heavy Assault Rifle Plasma Cutter Peak State ------------ > --- POWER ------------ Ion Engine Light Ion Engine > --- PROPULSION ------- Light Treads Light Treads > --- UTILITY ---------- Small Storage Unit Light Armor Plating > --- WEAPON ----------- Light Assault Rifle Light Assault Rifle Light Assault Rifle > --- INVENTORY -------- Aluminum Leg Compact Wheel Sensor Array Signal Interpreter Grenade Launcher [Rating: 9] Favorites ----------- Power Ion Engine Engine Ion Engine Propulsion Light Treads Treads Light Treads Leg Aluminum Leg Flight Unit Flight Unit Utility Small Storage Unit Device Sensor Array Storage Small Storage Unit Protection Light Armor Plating Weapon Light Assault Rifle Energy Gun EM Pulse Gun Ballistic Gun Light Assault Rifle Launcher Grenade Launcher Build | -11 -10 -9 ------- Run | Yrd Mat Mat Slots Evolved 2 | . . 2 Power 1 | . . 1 Propulsion . | . . . Utility . | . . . Weapon 1 | . . 1 Parts Attached 17 | 4 8 5 Power 2 | 1 . 1 Engine 2 | 1 . 1 Core . | . . . Reactor . | . . . Propulsion 6 | 2 2 2 Treads 2 | . 2 . Leg 2 | 2 . . Wheel . | . . . Hover . | . . . Flight 2 | . . 2 Utility 3 | 1 2 . Device 1 | . 1 . Storage 1 | 1 . . Processor . | . . . Hackware . | . . . Protection 1 | . 1 . Artifact . | . . . Weapon 6 | . 4 2 Energy Gun 1 | . 1 . Energy Cannon . | . . . Ballistic Gun 4 | . 2 2 Ballistic Cannon . | . . . Launcher 1 | . 1 . Special Weapon . | . . . Impact Weapon . | . . . Slashing Weapon . | . . . Piercing Weapon . | . . . Special Melee Weapon . | . . . Unidentified Prototypes . | . . . Parts Lost 2 | . 1 1 Power . | . . . Propulsion 1 | . . 1 Utility . | . . . Weapon 1 | . 1 . Highest Loss Streak 1 | . 1 1 To Critical Strikes . | . . . Average Backups 6 | 4 7 5 Power . | . 1 . Propulsion 2 | 2 2 1 Utility . | . . 2 Weapon 2 | 1 2 1 Tool/Special . | . . . Unused Backups 10 | . 2 8 Power 2 | . 1 1 Propulsion 1 | . . 1 Utility 1 | . . 1 Weapon 5 | . 1 4 Tool/Special 1 | . . 1 Average Slot Usage (%) 86 | . 89 81 Engine 15 | . 14 17 Treads 13 | . 12 15 Leg 10 | . 15 . Flight 2 | . . 6 Storage 13 | . 14 11 Protection 5 | . 4 7 Energy Gun 4 | . 7 . Ballistic Gun 13 | . 9 23 Launcher 6 | . 9 . Peak Build Rating 9 | 4 8 9 Average Rating 6 | 3 6 7 On Entrance 3 | . 4 7 Avg Prop Armor Cover (%) . | . . . Naked Turns . | . . . Heaviest Build 19 | 10 15 19 Greatest Support 40 | 20 40 40 Greatest Overweight (x) 1 | . . 1 Average Overweight (x) . | . . . Largest Inventory Capacity 8 | 8 8 8 Average Capacity 7 | 7 8 8 Most Carried 8 | 7 8 8 Average Carried 6 | 4 7 5 Final Capacity 8 | 8 8 8 Final Carried 8 | 7 7 8 Class Distribution -------------------- 82% | Mutant 17% | Tank Dominant Class ---------------- Mutant | -10/Materials Tank | -9/Materials Resources | -11 -10 -9 ----------- Run | Yrd Mat Mat Matter Collected 432 | 240 55 137 Remotely . | . . . Salvage Created 371 | . 234 137 Parts 37 | . 23 14 Haulers Intercepted 1 | . 1 . Recyclers Shooed . | . . . Parts Field Recycled . | . . . Retrieved Matter . | . . . Parts Self-Destructed . | . . . Prevented . | . . . Parts Restored . | . . . Kills | -11 -10 -9 ------- Run | Yrd Mat Mat Combat Hostiles Destroyed 13 | . 7 6 Guns 8 | . 2 6 AOE 5 | . 5 . Classes Destroyed 6 | . 6 . Worker 1 | . 1 . Builder 1 | . 1 . Hauler 1 | . 1 . Watcher 3 | . 3 . Swarmer 7 | . 3 4 Grunt 6 | . 4 2 Best Kill Streak 6 | . 4 6 Combat Bots Only 6 | . 3 6 Max Kills in Single Turn 2 | . 2 2 Gunslinging 1 | . . 1 Exploded 1 | . 1 . Melee . | . . . Uniques/NPCs Destroyed . | . . . Combat | -11 -10 -9 -------- Run | Yrd Mat Mat Hostile Shots Fired 63 | . 18 45 Missed 14 | . 3 11 Hits 49 | . 15 34 Projectile 49 | . 15 34 Critical Strikes 2 | . 1 1 Damage Taken 619 | . 268 351 Core 146 | . 53 93 Absorbed by Shields . | . . . Core Remaining (%) 89 | 100 78 . Volleys Fired 38 | . 23 15 Largest 3 | . 2 3 Hottest 70 | . 70 60 Shots Fired 78 | . 33 45 Gun 63 | . 18 45 Cannon . | . . . Launcher 15 | . 15 . Special . | . . . Kinetic 45 | . . 45 Thermal . | . . . Explosive 15 | . 15 . Electromagnetic 18 | . 18 . Robot Hit Streak 6 | . 4 6 Robot Miss Streak 7 | . 4 7 Penetration Max . | . . . Secondary Targets 2 | . . 2 Max Gunslinging Chain 1 | . . 1 Shots Hit Robots 39 | . 15 24 Core Hits 30 | . 21 9 Critical Kills . | . . . Critical Parts Destroyed . | . . . Critical Strikes . | . . . Melee Attacks . | . . . Impact . | . . . Slashing . | . . . Piercing . | . . . Sneak Attacks . | . . . Combat Hostiles . | . . . Follow-up Attacks . | . . . Damage Inflicted 959 | . 762 197 Guns 315 | . 118 197 Cannons . | . . . Explosions 644 | . 644 . Melee . | . . . Ramming . | . . . Kinetic 197 | . . 197 Thermal 102 | . 102 . Explosive 542 | . 542 . Electromagnetic 118 | . 118 . Impact . | . . . Slashing . | . . . Piercing . | . . . Highest Corruption . | . . . Average Corruption . | . . . Corruption Purged . | . . . Corruption Blocked . | . . . Overload Shots . | . . . Overflow Damage 10 | . 10 . Projectiles . | . . . Explosions 10 | . 10 . Melee . | . . . Knockbacks . | . . . Impact . | . . . Kinetic . | . . . Secondary . | . . . Self-Inflicted Damage 105 | . 105 . Shots 5 | . 5 . Rammed . | . . . Targets Rammed . | . . . Kicked . | . . . Crushed . | . . . Highest Temperature 233 | . 105 233 Average Temperature 60 | . 28 84 Received Heat Transfer 177 | . 87 90 Siege Activations . | . . . Martial Activations . | . . . Shielding Activations . | . . . Robots Disrupted . | . . . Combat Hostiles . | . . . Robots Corrupted . | . . . Combat Hostiles . | . . . Parts Fried . | . . . Impact Corruptions . | . . . Robots Melted . | . . . Combat Hostiles . | . . . Parts Melted . | . . . Heat Transferred 50 | . 50 . Parts Sabotaged . | . . . Parts Stolen . | . . . Parts Stripped . | . . . Power Chain Reactions 2 | . 2 . Alert | -11 -10 -9 ------- Run | Yrd Mat Mat Maximum Alert Level . | . . . Low Security (%) 100 | 100 100 100 Level 1 . | . . . Level 2 . | . . . Level 3 . | . . . Level 4 . | . . . Level 5 . | . . . High Security . | . . . Max Security . | . . . Peak Influence 196 | . 196 163 Initial 43 | . . 43 Average 91 | . 102 96 Influence Increases 531 | . 316 215 Destroy 0b10 Robot/C 260 | . 140 120 Destroy 0b10 Robot/NC 30 | . 30 . Destroy Leader 48 | . 28 20 Disable Machine 15 | . 15 . Destroy Structure 88 | . 88 . Lose Combat Pursuer 90 | . 15 75 Influence Decreases 383 | . 212 171 Entered New Map 61 | . . 61 Time Decay 302 | . 202 100 Lost Part 20 | . 10 10 Squads Dispatched 2 | . . 2 Investigation . | . . . Extermination . | . . . Reinforcement 2 | . . 2 Assault . | . . . Garrison . | . . . Intercept . | . . . Searches Triggered . | . . . Construction Impeded . | . . . Haulers Reinforced . | . . . Active Scanning Responses . | . . . Cargo Convoy Interrupts . | . . . Stealth | -11 -10 -9 --------- Run | Yrd Mat Mat Distress Signals 2 | . 2 . Communications Jammed . | . . . Distress Signals . | . . . Times Spotted 26 | . 10 16 Peak Tracking Total 12 | . 4 12 Tactical Retreats 3 | . 1 2 Traps | -11 -10 -9 ------- Run | Yrd Mat Mat Traps Triggered . | . . . Indirectly . | . . . Trap Hack Attempts . | . . . Triggered . | . . . Disarmed . | . . . Reprogrammed . | . . . Reused . | . . . Traps Extracted . | . . . Installed . | . . . Triggered . | . . . Machines | -11 -10 -9 ---------- Run | Yrd Mat Mat Machines Disabled 1 | . 1 . Max in Single Turn 1 | . 1 . Machines Repaired . | . . . Machines Dismantled . | . . . Machines Sabotaged . | . . . Overloaded Fab Kills . | . . . Hacking | -11 -10 -9 --------- Run | Yrd Mat Mat Machines Accessed 2 | . 2 . Terminals 2 | . 2 . Fabricators . | . . . Repair Stations . | . . . Recycling Units . | . . . Scanalyzers . | . . . Garrison Access . | . . . Total Hacks 4 | . 4 . Successful 2 | . 2 . Failed 2 | . 2 . Catastrophic . | . . . Database Lockouts . | . . . Manual . | . . . Terminals 4 | . 4 . Fabricators . | . . . Repair Stations . | . . . Recycling Units . | . . . Scanalyzers . | . . . Garrison Access . | . . . Terminal Hacks 2 | . 2 . Prototype ID Bank 1 | . 1 . Locate Traps 1 | . 1 . Fabricator Hacks . | . . . Repair Station Hacks . | . . . Recycling Unit Hacks . | . . . Scanalyzer . | . . . Garrison Access Hacks . | . . . Unauthorized Hacks . | . . . Terminals . | . . . Fabricators . | . . . Repair Stations . | . . . Recycling Units . | . . . Scanalyzers . | . . . Garrison Access . | . . . Data Cores Recovered . | . . . Used . | . . . Hacking Detections 2 | . 2 . Full Trace Events . | . . . Feedback Events . | . . . Feedback Blocked . | . . . Robot Schematics Acquired . | . . . Robots Built . | . . . Authchips . | . . . Time . | . . . Total Robot Build Rating . | . . . Part Schematics Acquired . | . . . Parts Built . | . . . Authchips . | . . . Time . | . . . Total Part Build Rating . | . . . Part Studies Acquired . | . . . Parts Repaired . | . . . Time . | . . . Parts Recycled . | . . . Recycled Matter . | . . . Retrieved Matter . | . . . Retrieved Components . | . . . Parts Scanalyzed . | . . . Part Schematics Acquired . | . . . Parts Damaged . | . . . Bothacking | -11 -10 -9 ------------ Run | Yrd Mat Mat Used RIF Installer . | . . . Robots Hacked . | . . . Non-combat . | . . . Combat . | . . . Robot Hacks Applied . | . . . Relay Couplers Released . | . . . Fabnet Peak Effective % . | . . . Robots Rewired . | . . . Allies Hacked . | . . . Hacks Repelled . | . . . Allies | -11 -10 -9 -------- Run | Yrd Mat Mat Total Allies . | . . . Largest Group . | . . . Highest-Rated Group . | . . . Highest-Rated Ally . | . . . Total Orders . | . . . Ally Attacks . | . . . Total Damage . | . . . Kills . | . . . Allies Corrupted . | . . . Allies Melted . | . . . Intel | -11 -10 -9 ------- Run | Yrd Mat Mat Active Infowar (turns) 42 | . 42 . Sensors 42 | . 42 . Robot Analysis Total . | . . . Derelict Logs Recovered . | . . . Drone Launches . | . . . Drone Recoveries . | . . . Exploration | -11 -10 -9 ------------- Run | Yrd Mat Mat Turns Passed 742 | 68 472 202 Spaces Moved 506 | 53 290 163 Core 14 | 14 . . Treads 181 | . 124 57 Legs 205 | 39 166 . Wheels . | . . . Hover . | . . . Flight 106 | . . 106 Fastest Speed 37 | 50 120 37 Average Speed 117 | 101 137 87 Slowest Speed 160 | 120 160 160 Overloaded Moves . | . . . Propulsion Burnouts . | . . . Robots Hopped 3 | . . 3 Potential Cave-ins . | . . . Cave-ins Triggered . | . . . Exploration Rate (%) 29 | 4 64 19 Regions Visited 2 Branch Regions . Pre-discovered Areas . | . . . Known Exits Taken . | . . . Unknown Exits Taken 2 | 1 1 . Scrap Searched . | . . . Spaces Dug . | . . . Terrain Destroyed 92 | . 92 . Melee . | . . . Projectile . | . . . AOE 92 | . 92 . Terrain Rammed . | . . . Walls Destroyed . | . . . Machines Disabled . | . . . Actions | -11 -10 -9 --------- Run | Yrd Mat Mat Total 596 | 67 332 197 Wait . | . . . Move 498 | 52 289 157 Hop 3 | . . 3 Pick Up 26 | 11 8 7 Fast Attach 1 | . . 1 Attach 10 | 4 4 2 Detach . | . . . Swap 6 | . 4 2 Drop 14 | . 4 10 Fire 38 | . 23 15 Melee . | . . . Ram . | . . . Kick . | . . . Crush . | . . . Escape Stasis . | . . . Rewire . | . . . Trap . | . . . Miscellaneous . | . . . Route ------- -11/Scrapyard -10/Materials (discovered 3 exits: [*Mat] / [*Min x2]) -9/Materials History --------- Turn | Location | Event 8 | -11/Scrapyard | Discovered new exit (range 15) 69 | -11/Scrapyard | Entered Materials 168 | -10/Materials | Discovered new exit (range 7) 309 | -10/Materials | Discovered new exit (range 15) 313 | -10/Materials | Build established: Mutant 424 | -10/Materials | Discovered new exit (range 11) 541 | -10/Materials | Entered another Materials area 541 | -9/Materials | Evolved 2 slots: Power x1, Weapon x1 743 | -9/Materials | Self-destructed Last Messages --------------- 00676_ Dropped Lgt. Assault Rifle. 00678_ Dropped Lgt. Armor Plating. 00678_ Dropped Ion Engine. 00682_ Dropped Lgt. Treads. 00686_ Acquired Hvy. Assault Rifle. 00691_ Dropped Aluminum Leg. 00695_ Acquired Lgt. Ion Engine. 00709_ Dropped Grenade Launcher. 00711_ Acquired Plasma Cutter. 00712_ Dropped Hvy. Assault Rifle. 00714_ Acquired 43 matter. 00714_ Acquired 34 matter. 00730_ T-07 Excavator is excavating. 00733_ O-16 Technician: "IFF HANDSHAKE FAILED. SECURING TERMINAL." 00734_ T-07 Excavator is excavating. 00738_ ALERT: Hostiles spotted, dispatching reinforcements to Terminal M001. 00742_ Flight Unit destroyed. 00742_ Critical hit (Burn: +37). Map ----- +----------------------------------------------------+ | | | | | | | | | | | | | | | | | | | | | | | | | | | | | | | | | | | | | | | | | ????????????????????????????????????????????????? | | ?????????????????????###########????????????????? | | ?????????????????????# u """ #????????????????? | | ????????????????###### "T" #????????????????? | | ???????????###### #! #????????????????? | | ???????????# # @ #????????????????? | | ???????????# Y/ #????????????????? | | ?????????????#### # !| #????????????????? | | ????????????????## ## Y= !| #????????????????? | | ?????????????????# ## !| #????????????????? | | ?????????????????# ##### ######????????????????? | | ?????????????????# #???###?????####????????????? | | ????????????????## ########## #???? ??????? | | ?????????????#### #???# ?????? | | ?????????????+ ?? ?????? | | ?????????????#### #???? ?????? | | ????????????????# ###### #???? ?????? | | ????????????????# #?????????#?????# ?????? | | ????????????????# ##?#######??????# ????? | | ?????????? ###### # #??????# ????? | | ???????? # #??????# ????? | | ???????# + #??????# ????? | | ???????# #########??????# ????? | | ???????? """ """ """ ##????????????## ##??? | | ??????????""" """ """ #????????????# #### | | ??????????""" """ """ #????????????# | | ???????? #????????????+ T | | ???????? #????????????# ! | | ???????? """ """ #????????????# ###+ | | ??????????? ?? """ """ #????????????####### | +----------------------------------------------------+ Best States ------------- Heat Dissipation 28 Energy Generation 15 Energy Capacity 275 Matter Stores 300 Matter Capacity 300 Sight Range 16 Robot Scan Range 14 Terrain Scan Density 10 Armor Coverage 150 Evasion (%) 62 Recoil Reduction 2 Item Schematics ----------------- None Robot Schematics ------------------ None Fabricated ------------ Nothing Repaired ---------- Nothing Studied --------- None Alien Tech Used ----------------- None Achievements -------------- DATA ERROR: Steam Global Achievement% Organ Harvest Challenges ------------ None Game ------ Seed JunkHypercooledTriangulator Manual? 0 Play Time 00:11:52 Cumulative 36.6 hours Start 2025.11.09 @ 17:06:17 End 2025.11.09 @ 17:19:54 Sessions 1 Manual Loads 0 Difficulty Rogue Special Mode None Game No. 67 Rogue 67 Adventurer 0 Explorer 0 Win Type - Total 0 Types 0/0/0/0/0/0/0/0/0/0 Lore% 13 Gallery% 28 Achievement% 14 Wizard Run 0 Options --------- Layout 1 ASCII 0 Keyboard 0 Movement Mouse Keybinds 0 Fullscreen 2 Font 24/Smallcaps Map View 50x35 Zoom Use 0% Tactical HUD 1 Map Filters NONE Filters NONE Steam 1 RUN: ad841be7-93e7-4f05-b04d-47b374cb557f